Cogmind - Beta 13 @@@ ROGUE MODE // 2024.07.28 @ 11:35:44 Player: DabbyDB Result: Self-destructed Performance ------------- Evolutions (1) 500 Regions Visited (4) 800 Robots Destroyed (27) 135 Value Destroyed (661) 661 Prototype IDs (0) 0 Alien Tech Used (0) 0 Bonus (131) 131 TOTAL SCORE: 2227 Bonus ------- Follower Combat Kills 131 Cogmind --------- Core Integrity 313/400 Matter 273/300 Energy 125/125 System Corruption 0% Temperature Cool (0) Movement Treading (160) Location -9/Storage Parts ------- > --- POWER (1) -------- Light Ion Engine > --- PROPULSION (3) --- Light Treads Light Treads Improved Treads > --- UTILITY (3) ------ Small Storage Unit Signal Interpreter > --- WEAPON (2) ------- Assault Rifle Mining Laser > --- INVENTORY (8) ---- Light Treads Compact Wheel Heat Sink High-capacity Matter Pod (200) Medium Armor Plating High-powered Shotgun Bore Cannon Rocket Launcher Peak State ------------ > --- POWER ------------ Light Ion Engine > --- PROPULSION ------- Light Treads Light Treads Flight Unit > --- UTILITY ---------- Small Storage Unit Sensor Array Signal Interpreter > --- WEAPON ----------- Assault Rifle High-powered Shotgun > --- INVENTORY -------- Flight Unit Heat Sink High-capacity Matter Pod Experimental Sensor Array Medium Armor Plating Bore Cannon Rocket Launcher Mining Laser [Rating: 13] Favorites ----------- Power Light Ion Engine Engine Light Ion Engine Propulsion Compact Wheel Treads Light Treads Wheel Compact Wheel Flight Unit Flight Unit Utility Small Storage Unit Device Sensor Array Storage Small Storage Unit Processor Signal Interpreter Weapon Assault Rifle Energy Gun EM Pulse Gun Energy Cannon Beam Cannon Ballistic Gun Assault Rifle Launcher Rocket Launcher Special Weapon Mining Laser Build | -11 -10 -10 -9 -9 ------- Run | Yrd Mat Min Mat Sto Slots Evolved 2 | . . . 2 . Power . | . . . . . Propulsion 1 | . . . 1 . Utility 1 | . . . 1 . Weapon . | . . . . . Parts Attached 38 | 9 8 12 7 2 Power 3 | 1 . 2 . . Engine 3 | 1 . 2 . . Core . | . . . . . Reactor . | . . . . . Propulsion 20 | 4 4 5 6 1 Treads 6 | . . . 5 1 Leg . | . . . . . Wheel 9 | 4 2 2 1 . Hover . | . . . . . Flight 5 | . 2 3 . . Utility 4 | 1 2 . 1 . Device 2 | . 1 . 1 . Storage 1 | 1 . . . . Processor 1 | . 1 . . . Hackware . | . . . . . Protection . | . . . . . Artifact . | . . . . . Weapon 11 | 3 2 5 . 1 Energy Gun 1 | 1 . . . . Energy Cannon 1 | . 1 . . . Ballistic Gun 4 | 2 . 2 . . Ballistic Cannon . | . . . . . Launcher 2 | . . 2 . . Special Weapon 3 | . 1 1 . 1 Impact Weapon . | . . . . . Slashing Weapon . | . . . . . Piercing Weapon . | . . . . . Special Melee Weapon . | . . . . . Unidentified Prototypes . | . . . . . Parts Lost 8 | . 3 4 1 . Power 1 | . . 1 . . Propulsion 5 | . 2 2 1 . Utility . | . . . . . Weapon 2 | . 1 1 . . Highest Loss Streak 3 | . 3 3 1 . To Critical Strikes . | . . . . . Average Slot Usage (%) 97 | . 97 98 93 99 Engine 12 | . 14 14 11 11 Treads 8 | . . . 17 23 Wheel 15 | . 21 22 4 9 Flight 4 | . 6 5 6 . Device 5 | . 2 . 10 10 Storage 12 | . 14 14 11 11 Processor 11 | . 10 14 11 11 Energy Gun 5 | . 14 4 . . Energy Cannon 3 | . 7 4 . . Ballistic Gun 13 | . 3 10 22 20 Launcher 1 | . . 5 . . Special Weapon 1 | . 1 3 . 2 Naked Turns . | . . . . . Heaviest Build 18 | 12 13 18 14 14 Greatest Support 63 | 32 32 32 60 63 Greatest Overweight (x) 4 | . 1 1 4 . Average Overweight (x) . | . . . . . Largest Inventory Capacity 8 | 8 8 8 8 8 Average Capacity 7 | 6 8 8 8 8 Most Carried 8 | 8 8 8 8 8 Average Carried 7 | 4 7 7 7 7 Final Capacity 8 | 8 8 8 8 8 Final Carried 8 | 8 8 8 8 8 Class Distribution -------------------- 49% | Mutant 48% | Scavenger-Mutant Dominant Class ---------------- Mutant | -10/Materials Mutant | -10/Mines Scavenger-Mutant | -9/Materials Scavenger-Mutant | -9/Storage Resources | -11 -10 -10 -9 -9 ----------- Run | Yrd Mat Min Mat Sto Matter Collected 914 | 287 257 153 168 49 Remotely . | . . . . . Salvage Created 881 | 89 275 176 240 101 Parts 57 | 2 18 11 15 11 Haulers Intercepted . | . . . . . Recyclers Shooed . | . . . . . Parts Field Recycled . | . . . . . Retrieved Matter . | . . . . . Parts Self-Destructed . | . . . . . Prevented . | . . . . . Kills | -11 -10 -10 -9 -9 ------- Run | Yrd Mat Min Mat Sto Combat Hostiles Destroyed 18 | . 5 6 5 2 Guns 14 | . 4 3 5 2 Cannons 3 | . . 3 . . AOE 1 | . 1 . . . Classes Destroyed 6 | 1 4 . 1 . Recycler 2 | 1 1 . . . Operator 2 | . 1 . . 1 Watcher 5 | . 2 . 1 2 Swarmer 6 | . 3 3 . . Grunt 9 | . 2 3 2 2 Sentry 3 | . . . 3 . Best Kill Streak 5 | 1 5 3 3 5 Combat Bots Only 3 | . 3 3 3 2 Max Kills in Single Turn 1 | 1 1 1 1 1 Gunslinging . | . . . . . Exploded 1 | . 1 . . . Melee . | . . . . . Uniques/NPCs Destroyed . | . . . . . Combat | -11 -10 -10 -9 -9 -------- Run | Yrd Mat Min Mat Sto Hostile Shots Fired 79 | . 13 31 30 5 Missed 19 | . 4 4 9 2 Damage Taken 735 | . 108 291 302 34 Core 109 | . . 22 87 . Absorbed by Shields . | . . . . . Core Remaining (%) 95 | 100 . 91 . . Volleys Fired 57 | 3 14 17 14 9 Largest 2 | 2 2 2 2 2 Hottest 140 | 60 140 120 45 100 Shots Fired 107 | 6 25 31 28 17 Gun 97 | 6 24 23 28 16 Cannon 6 | . . 6 . . Launcher . | . . . . . Special 4 | . 1 2 . 1 Kinetic 73 | 3 10 16 28 16 Thermal 10 | . 1 8 . 1 Explosive . | . . . . . Electromagnetic 24 | 3 14 7 . . Robot Hit Streak 13 | 2 4 13 6 5 Robot Miss Streak 3 | 1 1 3 2 2 Penetration Max . | . . . . . Secondary Targets 1 | . . . 1 . Max Gunslinging Chain 1 | . . . 1 . Shots Hit Robots 73 | 3 15 21 24 10 Core Hits 38 | 2 10 9 11 6 Critical Kills . | . . . . . Critical Parts Destroyed . | . . . . . Critical Strikes . | . . . . . Melee Attacks . | . . . . . Impact . | . . . . . Slashing . | . . . . . Piercing . | . . . . . Sneak Attacks . | . . . . . Combat Hostiles . | . . . . . Follow-up Attacks . | . . . . . Damage Inflicted 1141 | 40 254 312 386 149 Guns 986 | 40 210 201 386 149 Cannons 87 | . . 87 . . Explosions 44 | . 44 . . . Melee . | . . . . . Ramming . | . . . . . Kinetic 720 | 27 50 108 386 149 Thermal 155 | . 44 111 . . Explosive . | . . . . . Electromagnetic 266 | 13 160 93 . . Impact . | . . . . . Slashing . | . . . . . Piercing . | . . . . . Highest Corruption . | . . . . . Average Corruption . | . . . . . Corruption Purged . | . . . . . Corruption Blocked . | . . . . . Overload Shots . | . . . . . Overflow Damage . | . . . . . Projectiles . | . . . . . Explosions . | . . . . . Melee . | . . . . . Knockbacks . | . . . . . Impact . | . . . . . Kinetic . | . . . . . Secondary . | . . . . . Self-Inflicted Damage . | . . . . . Shots . | . . . . . Rammed . | . . . . . Targets Rammed . | . . . . . Kicked . | . . . . . Crushed . | . . . . . Highest Temperature 311 | . 85 311 1 8 Average Temperature 133 | . 38 194 1 5 Received Heat Transfer 270 | . 54 117 81 18 Siege Activations . | . . . . . Robots Corrupted . | . . . . . Combat Hostiles . | . . . . . Parts Fried 1 | . 1 . . . Impact Corruptions . | . . . . . Robots Melted . | . . . . . Combat Hostiles . | . . . . . Parts Melted . | . . . . . Heat Transferred 285 | . 50 235 . . Parts Sabotaged . | . . . . . Parts Stolen . | . . . . . Parts Stripped . | . . . . . Power Chain Reactions 1 | . 1 . . . Alert | -11 -10 -10 -9 -9 ------- Run | Yrd Mat Min Mat Sto Peak Influence 241 | 5 168 105 241 121 Initial 27 | . 3 . 27 16 Average 81 | 1 100 28 156 60 Maximum Alert Level 1 | . . . 1 . Low Security (%) 90 | 100 100 100 57 100 Level 1 9 | . . . 42 . Level 2 . | . . . . . Level 3 . | . . . . . Level 4 . | . . . . . Level 5 . | . . . . . High Security . | . . . . . Max Security . | . . . . . Squads Dispatched 5 | . . 1 1 3 Investigation 1 | . . 1 . . Extermination . | . . . . . Reinforcement 4 | . . . 1 3 Assault . | . . . . . Garrison . | . . . . . Intercept . | . . . . . Searches Triggered . | . . . . . Construction Impeded . | . . . . . Haulers Reinforced . | . . . . . Active Scanning Responses . | . . . . . Cargo Convoy Interrupts . | . . . . . Stealth | -11 -10 -10 -9 -9 --------- Run | Yrd Mat Min Mat Sto Distress Signals 5 | . 2 . 1 2 Communications Jammed . | . . . . . Distress Signals . | . . . . . Times Spotted 40 | . 9 9 8 14 Peak Tracking Total 5 | . 4 3 4 5 Tactical Retreats 3 | . . . 1 2 Traps | -11 -10 -10 -9 -9 ------- Run | Yrd Mat Min Mat Sto Traps Triggered . | . . . . . Indirectly . | . . . . . Trap Hack Attempts . | . . . . . Triggered . | . . . . . Disarmed . | . . . . . Reprogrammed . | . . . . . Reused . | . . . . . Traps Extracted . | . . . . . Installed . | . . . . . Triggered . | . . . . . Machines | -11 -10 -10 -9 -9 ---------- Run | Yrd Mat Min Mat Sto Machines Disabled 1 | . . . . 1 Max in Single Turn 1 | . . . . 1 Machines Repaired . | . . . . . Machines Dismantled . | . . . . . Machines Sabotaged . | . . . . . Overloaded Fab Kills . | . . . . . Hacking | -11 -10 -10 -9 -9 --------- Run | Yrd Mat Min Mat Sto Machines Accessed 1 | . . 1 . . Terminals . | . . . . . Fabricators . | . . . . . Repair Stations . | . . . . . Recycling Units . | . . . . . Scanalyzers . | . . . . . Garrison Access . | . . . . . Total Hacks 1 | . . 1 . . Successful 1 | . . 1 . . Failed . | . . . . . Catastrophic . | . . . . . Database Lockouts . | . . . . . Manual . | . . . . . Terminals . | . . . . . Fabricators . | . . . . . Repair Stations . | . . . . . Recycling Units . | . . . . . Scanalyzers . | . . . . . Garrison Access . | . . . . . Terminal Hacks 1 | . . 1 . . Open Door 1 | . . 1 . . Fabricator Hacks . | . . . . . Repair Station Hacks . | . . . . . Recycling Unit Hacks . | . . . . . Scanalyzer . | . . . . . Garrison Access Hacks . | . . . . . Unauthorized Hacks . | . . . . . Terminals . | . . . . . Fabricators . | . . . . . Repair Stations . | . . . . . Recycling Units . | . . . . . Scanalyzers . | . . . . . Garrison Access . | . . . . . Data Cores Recovered . | . . . . . Used . | . . . . . Hacking Detections . | . . . . . Full Trace Events . | . . . . . Feedback Events . | . . . . . Feedback Blocked . | . . . . . Robot Schematics Acquired . | . . . . . Robots Built . | . . . . . Authchips . | . . . . . Time . | . . . . . Total Robot Build Rating . | . . . . . Part Schematics Acquired . | . . . . . Parts Built . | . . . . . Authchips . | . . . . . Time . | . . . . . Total Part Build Rating . | . . . . . Parts Repaired . | . . . . . Time . | . . . . . Parts Recycled . | . . . . . Recycled Matter . | . . . . . Retrieved Matter . | . . . . . Retrieved Components . | . . . . . Parts Scanalyzed . | . . . . . Part Schematics Acquired . | . . . . . Parts Damaged . | . . . . . Bothacking | -11 -10 -10 -9 -9 ------------ Run | Yrd Mat Min Mat Sto Used RIF Installer . | . . . . . Robots Hacked . | . . . . . Non-combat . | . . . . . Combat . | . . . . . Robot Hacks Applied . | . . . . . Relay Couplers Released . | . . . . . Fabnet Peak Effective % . | . . . . . Robots Rewired . | . . . . . Allies Hacked . | . . . . . Hacks Repelled . | . . . . . Allies | -11 -10 -10 -9 -9 -------- Run | Yrd Mat Min Mat Sto Total Allies 11 | . . 1 . 10 Largest Group 10 | . . 1 . 10 Highest-Rated Group 88 | . . 31 . 88 Highest-Rated Ally 31 | . . 31 . 16 Total Orders . | . . . . . Ally Attacks 46 | . . 11 . 35 Total Damage 382 | . . 103 . 279 Kills 7 | . . 3 . 4 Allies Corrupted . | . . . . . Allies Melted . | . . . . . Intel | -11 -10 -10 -9 -9 ------- Run | Yrd Mat Min Mat Sto Robot Analysis Total . | . . . . . Derelict Logs Recovered 1 | . . 1 . . Drone Launches . | . . . . . Drone Recoveries . | . . . . . Exploration | -11 -10 -10 -9 -9 ------------- Run | Yrd Mat Min Mat Sto Turns Passed 1869 | 65 501 560 415 328 Spaces Moved 1344 | 43 390 450 246 215 Core 14 | 1 . . 13 . Treads 118 | . . . 97 21 Legs . | . . . . . Wheels 1129 | 42 307 450 136 194 Hover . | . . . . . Flight 83 | . 83 . . . Fastest Speed 50 | 50 100 90 100 100 Average Speed 106 | 81 103 97 131 105 Slowest Speed 250 | 100 117 115 250 160 Overloaded Moves . | . . . . . Propulsion Burnouts . | . . . . . Robots Hopped . | . . . . . Cave-ins Triggered . | . . . . . Exploration Rate (%) 39 | 3 54 85 20 34 Regions Visited 4 Branch Regions 2 Pre-discovered Areas . | . . . . . Known Exits Taken 3 | . 1 1 1 . Unknown Exits Taken 1 | 1 . . . . Scrap Searched 1 | . . 1 . . Spaces Dug . | . . . . . Terrain Destroyed 7 | . 6 1 . . Melee . | . . . . . Projectile 2 | . 1 1 . . AOE 5 | . 5 . . . Terrain Rammed . | . . . . . Walls Destroyed . | . . . . . Machines Disabled . | . . . . . Actions | -11 -10 -10 -9 -9 --------- Run | Yrd Mat Min Mat Sto Total 1667 | 62 461 537 310 297 Wait 170 | . 30 38 36 66 Move 1340 | 42 389 449 245 215 Hop . | . . . . . Pick Up 34 | 8 11 10 3 2 Fast Attach 14 | 6 2 3 3 . Attach 6 | . 2 3 1 . Detach 1 | . . 1 . . Swap 18 | 3 4 6 3 2 Drop 27 | . 9 10 5 3 Fire 57 | 3 14 17 14 9 Melee . | . . . . . Ram . | . . . . . Kick . | . . . . . Crush . | . . . . . Escape Stasis . | . . . . . Rewire . | . . . . . Trap . | . . . . . Miscellaneous . | . . . . . Route ------- -11/Scrapyard -10/Materials (discovered 3 exits: *Mat x2 / *Min) -10/Mines -9/Materials (discovered 2 exits: Mat / *Sto) -9/Storage History --------- Turn | Location | Event 16 | -11/Scrapyard | Discovered new exit (range 14) 66 | -11/Scrapyard | Entered Materials 184 | -10/Materials | Discovered new exit (range 13) 202 | -10/Materials | Identified exit to Mines 294 | -10/Materials | Lost 3 parts (2n1w) 328 | -10/Materials | Build established: Mutant 382 | -10/Materials | Discovered new exit (range 10) 390 | -10/Materials | Identified exit to Materials 425 | -10/Materials | Discovered exit to Materials (range 15) 567 | -10/Materials | Entered Mines 598 | -10/Mines | Learned 2 Materials zone layouts 616 | -10/Mines | Met a Derelict bent on vengeance 619 | -10/Mines | Found a damaged Exp. Sensor Array with a note attached 622 | -10/Mines | Found Prototype Device 756 | -10/Mines | Escorted by a lone wolf Derelict 766 | -10/Mines | Lost 3 parts (1p1n1w) 861 | -10/Mines | Met a Derelict shopkeep closing up shop 941 | -10/Mines | Received a Rocket Launcher from a helpful Derelict 984 | -10/Mines | A weapon hastily lodged in a ceiling crevice suddenly fell to the ground 1088 | -10/Mines | Discovered exit to Materials (range 8) 1127 | -10/Mines | Entered Materials 1127 | -9/Materials | Evolved 2 slots: Propulsion x1, Utility x1 1128 | -9/Materials | Identified exit to Materials 1228 | -9/Materials | Build established: Scavenger-Mutant 1309 | -9/Materials | Discovered new exit (range 14) 1428 | -9/Materials | Identified exit to Storage 1542 | -9/Materials | Entered Storage 1708 | -9/Storage | Assisted by bots powering up and referring to "LRC-V3" 1804 | -9/Storage | Lost 9 allies 1870 | -9/Storage | Self-destructed Last Messages --------------- 01756_ Mercenary 2b destroyed. 01761_ L-31 Rogue destroyed. 01769_ Mercenary 2d destroyed. 01773_ Mercenary 2e destroyed. 01791_ K-01 Serf collects debris. 01803_ R-06 Scavenger collects Aluminum Leg. 01807_ R-06 Scavenger collects Ion Engine. 01821_ Storage Shell breached. 01827_ K-01 Serf collects debris. 01829_ Dropped Lgt. Treads. 01829_ Acquired Imp. Treads. 01830_ K-01 Serf collects debris. 01831_ Dropped Prototype Device. 01837_ Acquired Lgt. Treads. 01856_ O-16 Technician sends out distress signal. 01856_ O-16 Technician: "IFF HANDSHAKE FAILED. SECURING TERMINAL." 01860_ ALERT: Hostiles spotted, dispatching reinforcements to Terminal S004. 01869_ Dropped Sensor Array. Map ----- +----------------------------------------------------+ | ?????????????????????????????# #???????????????? | | ?????????????????????????????# #???????????????? | | ?????????????????????????????# #???????????????? | | ?????????????????????????????# #???????????????? | | ???????????????????????????### #???????????????? | | ???????????????????????????#"" #???????????????? | | ???????????????????????????#"Y #???????????????? | | ???????????????????????????#"" #???????????????? | | ???????????????????????????### #???????????????? | | ?????????????????????????????# #???????????????? | | ?????????????????????????????# #???????????????? | | ?????????????????????????????# #???????????????? | | ?????????????????????????????# #???????????????? | | ?????????????????????????????# #???????????????? | | ?????????????????????????????# ##########??????? | | ?????????????????????????????# # #??????? | | ?????????????????????????????# # """ #??????? | | ?????????????????????????????# # """ #??????? | | ????????????????????########## # """ #??????? | | ????????????????????# # # #??????? | | ????????????????????# # +% """ #??????? | | ????????????????????# """" " # # """ #??????? | | ????????????????????# "[!]=" # #% """ #??????? | | ????????????????????# "|!|!" +[*=+ #??????? | | ????????????????????# """""" #=%=##########??????? | | ????????????##### ### @ ###[#???????????????? | | ?????? T g gg/ g #?#%##############??? | | ????????????## ### #?#=%*=%*[ #??? | | ?????????????# ????##########?###!%== ##?? | | ?????????????????????????????????#[*= T#?? | | ?????????????????????????######??#!%! ##?? | | ?????????????????????????# #??#! #??? | | ?????????????????????????# #??# * #??? | | ?????????????????????????# #??#%######## #??? | | ?????????????????????????# ####=##T #?##+##??? | | ?????????????????????????# / + * #? ??? | | ?????????????????????????# ###### # """"" #? | | ?????????????????????????# #????# # """"" #? | | ?????????????????????????# #????## # """"" #? | | ?????????????????????????# ???????#### #? | | ?????????????????????????#####??????????#########? | | | | | | | | | | | | | | | | | | | +----------------------------------------------------+ Best States ------------- Heat Dissipation 28 Energy Generation 10 Energy Capacity 250 Matter Stores 300 Matter Capacity 300 Sight Range 16 Robot Scan Range 14 Terrain Scan Density 10 Evasion (%) 44 Recoil Reduction 3 Item Schematics ----------------- None Robot Schematics ------------------ None Fabricated ------------ Nothing Alien Tech Used ----------------- None Achievements -------------- The More The Merrier Challenges ------------ None Game ------ Seed HypercooledDispersionClaws Manual? 0 Play Time 01:10:32 Cumulative 18.4 hours Start 2024.05.26 @ 09:57:16 End 2024.07.28 @ 11:35:44 Sessions 9 Manual Loads 0 Difficulty Rogue Special Mode None Game No. 7 Rogue 7 Adventurer 0 Explorer 0 Win Type - Total 0 Types 0/0/0/0/0/0/0/0/0 Lore% 11 Gallery% 13 Achievement% 17 Wizard Run 0 Options --------- Layout 2 ASCII 1 Keyboard 1 Movement Numpad Keybinds 0 Fullscreen 2 Font 28/SmallcapsGlow Map View 59x48 Zoom Use 0% Tactical HUD 1 Map Filters NONE Filters NONE Steam 1 RUN: 0a5f6576-4808-4c9b-9ef0-65c3469df7a7